[Event "FIDE WYCC Open U14 2023"]
[Site "Montesilvano"]
[Date "2023.11.18"]
[Round "6.20"]
[White "Tenuunbold, Battulga"]
[Black "Artemov, Andriy"]
[Result "*"]
[WhiteElo "2290"]
[BlackElo "1779"]
[Annotator "RC"]
[PlyCount "94"]
[EventDate "2023.11.13"]
[EventType "swiss"]
[EventCountry "ITA"]
[SourceTitle "playchess.com"]
[Source "ChessBase"]
[SourceQuality "1"]
[TimeControl "40/5400+30:1800+30"]

1. d4 {[%emt 0:00:09]} d5 {[%emt 0:00:35]} 2. c4 {[%emt 0:00:07]} e6 {[%emt 0:00:07]} 3. Nc3 {[%emt 0:00:46]} Nf6 {[%emt 0:00:14]} 4. cxd5 {[%emt 0:00:18]} exd5 {[%emt 0:00:07]} 5. Bg5 {[%emt 0:00:09]} Be7 {[%emt 0:00:28]} 6. e3 {[%emt 0:00:40]} h6 {[%emt 0:00:06]} 7. Bh4 {[%emt 0:00:27]} c6 {[%emt 0:00:18]} 8. Bd3 {[%emt 0:00:53]} O-O {[%emt 0:00:09]} 9. Qc2 {[%emt 0:00:20]} Re8 {[%emt 0:00:23]} 10. Nge2 {[%emt 0:01:03]} Nbd7 {[%emt 0:00:55]} 11. O-O {[%emt 0:09:02]} a5 {[%emt 0:00:26]} 12. f3 {[%emt 0:05:57]} b5 {[%emt 0:00:32]} 13. Rad1 {[%emt 0:07:34]} Ba6 {[%emt 0:01:36]} 14. Bf2 {[%emt 0:13:09]} Bf8 {[%emt 0:02:26]} 15. h3 {[%emt 0:10:00]} Qb8 {[%emt 0:00:39]} 16. Ng3 {[%emt 0:09:33]} Qb7 {[%emt 0:02:38]} 17. e4 {[%emt 0:02:11]} b4 {[%emt 0:00:08]} 18. Bxa6 {[%emt 0:00:04]} Qxa6 {[%emt 0:00:08]} 19. Na4 {[%emt 0:00:37]} dxe4 {[%emt 0:00:18]} 20. fxe4 {[%emt 0:00:28]} c5 {[%emt 0:00:58]} 21. e5 {[%emt 0:17:17]} Nd5 {[%emt 0:00:13]} 22. Nxc5 {[%emt 0:00:09]} Nxc5 {[%emt 0:00:19]} 23. dxc5 {[%emt 0:00:04]} Rxe5 {[%emt 0:02:01]} 24. Rd3 {[%emt 0:08:30]} Qg6 {[%emt 0:03:21]} 25. Qc4 {[%emt 0:01:49]} Nc7 {[%emt 0:02:28]} 26. Rd7 {[%emt 0:06:08]} Qe6 {[%emt 0:05:05]} 27. Qxe6 {[%emt 0:03:42]} Nxe6 {[%emt 0:00:08]} 28. c6 {[%emt 0:00:05]} Rc8 {[%emt 0:00:24]} 29. Rc1 {[%emt 0:01:08]} Nc5 {[%emt 0:00:30]} 30. Rd4 {[%emt 0:02:07]} b3 {[%emt 0:04:36]} 31. a3 {[%emt 0:00:32]} Be7 {[%emt 0:01:52]} 32. Rdc4 {[%emt 0:00:54]} Nd3 {[%emt 0:00:13]} 33. Bd4 Rd5 {[%emt 0:02:15]} 34. Rf1 {[%emt 0:01:06]} Rxd4 {[%emt 0:03:02]} 35. Rxd4 {[%emt 0:00:02]} Bc5 {[%emt 0:00:08]} 36. Nf5 {[%emt 0:00:19]} Kf8 {[%emt 0:00:59]} 37. Kh2 {[%emt 0:00:47]} Bxd4 {[%emt 0:00:36]} 38. Nxd4 {[%emt 0:00:01]} a4 {[%emt 0:00:19]} 39. Rb1 {[%emt 0:01:18]} Ke7 {[%emt 0:01:10]} 40. Kg3 {[%emt 0:00:00]} Kd6 {[%emt 0:00:00]} 41. Kf3 {[%emt 0:08:24]} Kd5 {[%emt 0:02:53]} 42. Ke3 {[%emt 0:02:48]} Ne5 {[%emt 0:00:26]} 43. Nf5 {[%emt 0:03:31]} Nxc6 {[%emt 0:01:37]} 44. Rd1+ {[%emt 0:00:07]} Ke5 {[%emt 0:08:08]} 45. Nd6 {[%emt 0:00:59]} Rc7 {[%emt 0:00:17]} 46. Nb5 {[%emt 0:02:48]} Rb7 {[%emt 0:02:05]} 47. Nc3 {[%emt 0:01:30]} Ra7 {[%emt 0:04:05]} *

[Event "FIDE WYCC Open U14 2023"]
[Site "Montesilvano"]
[Date "2023.11.18"]
[Round "6.21"]
[White "Balint, Peter"]
[Black "Bochniak, Franciszek"]
[Result "1-0"]
[ECO "B38"]
[WhiteElo "2256"]
[BlackElo "1954"]
[Annotator "RC"]
[PlyCount "97"]
[EventDate "2023.11.13"]
[EventType "swiss"]
[EventCountry "ITA"]
[SourceTitle "playchess.com"]
[Source "ChessBase"]
[SourceQuality "1"]
[TimeControl "40/5400+30:1800+30"]

1. e4 {[%emt 0:00:01]} c5 {[%emt 0:00:05]} 2. Nf3 {[%emt 0:00:04]} Nc6 {[%emt 0:00:05]} 3. d4 {[%emt 0:00:33]} cxd4 {[%emt 0:00:05]} 4. Nxd4 {[%emt 0:00:04]} g6 {[%emt 0:00:02]} 5. c4 {[%emt 0:00:09]} Bg7 {[%emt 0:00:05]} 6. Be3 {[%emt 0:00:05]} Qb6 {[%emt 0:00:04]} 7. Nb5 {[%emt 0:06:29]} Qa5+ {[%emt 0:00:06]} 8. N5c3 {[%emt 0:04:08]} d6 {[%emt 0:00:32]} 9. Be2 {[%emt 0:01:37]} Qb4 {[%emt 0:02:30]} 10. Qd2 {[%emt 0:07:43]} Be6 {[%emt 0:10:57]} 11. O-O {[%emt 0:03:31]} Nf6 {[%emt 0:06:22]} 12. f3 {[%emt 0:10:29]} Nd7 {[%emt 0:08:58]} 13. a3 {[%emt 0:21:03]} Qa5 {[%emt 0:11:14]} 14. b4 {[%emt 0:02:56]} Qd8 {[%emt 0:15:30]} 15. Ra2 {[%emt 0:07:18]} O-O {[%emt 0:01:41]} 16. Nd5 {[%emt 0:01:34]} Rc8 {[%emt 0:06:26]} 17. Rc2 {[%emt 0:00:47]} b6 {[%emt 0:02:08]} 18. Nbc3 {[%emt 0:04:26]} f5 {[%emt 0:01:53]} 19. Nf4 {[%emt 0:04:27]} Bf7 {[%emt 0:01:08]} 20. exf5 {[%emt 0:00:31]} gxf5 {[%emt 0:00:33]} 21. Nh3 {[%emt 0:00:42]} Kh8 {[%emt 0:04:39]} 22. Nd5 {[%emt 0:00:42]} Nce5 {[%emt 0:10:22]} 23. Bg5 {[%emt 0:08:05]} Re8 {[%emt 0:05:20]} 24. Rd1 {[%emt 0:01:00]} Nf8 {[%emt 0:00:47]} 25. Be3 {[%emt 0:04:16]} Qd7 {[%emt 0:01:05]} 26. Bd4 {[%emt 0:01:59]} Ne6 {[%emt 0:02:07]} 27. Bb2 {[%emt 0:01:13]} Rg8 {[%emt 0:02:20]} 28. Kh1 {[%emt 0:01:06]} Nc6 {[%emt 0:00:18]} 29. Bxg7+ {[%emt 0:00:50]} Rxg7 {[%emt 0:00:03]} 30. Qe3 {[%emt 0:00:15]} Ne5 {[%emt 0:02:55]} 31. Bf1 {[%emt 0:01:33]} Qb7 {[%emt 0:00:45]} 32. Rcc1 {[%emt 0:00:52]} Nf8 {[%emt 0:03:56]} 33. Nhf4 {[%emt 0:00:42]} Ne6 {[%emt 0:00:43]} 34. c5 {[%emt 0:02:08]} bxc5 {[%emt 0:00:26]} 35. Nxe6 {[%emt 0:00:13]} Bxe6 {[%emt 0:00:01]} 36. Nf4 {[%emt 0:00:07]} Bf7 {[%emt 0:01:23]} 37. bxc5 {[%emt 0:00:23]} Qb2 {[%emt 0:00:30]} 38. Rb1 {[%emt 0:02:59]} Qa2 {[%emt 0:00:04]} 39. cxd6 {[%emt 0:00:22]} exd6 {[%emt 0:00:01]} 40. Rb7 {[%emt 0:00:00]} a5 {[%emt 0:00:00]} 41. h4 {[%emt 0:05:54]} Rd8 {[%emt 0:13:45]} 42. h5 {[%emt 0:03:36]} h6 {[%emt 0:08:02]} 43. Ng6+ {[%emt 0:00:42]} Kh7 {[%emt 0:02:10]} 44. Nxe5 {[%emt 0:02:01]} Re8 {[%emt 0:00:01]} 45. Rxd6 {[%emt 0:01:18]} Qa1 {[%emt 0:00:03]} 46. Rxh6+ {[%emt 0:00:10]} Kg8 {[%emt 0:00:01]} 47. Rh8+ {[%emt 0:00:11]} Kxh8 {[%emt 0:00:04]} 48. Nxf7+ {[%emt 0:00:07]} Kh7 {[%emt 0:00:06]} 49. Qh6+ {[%emt 0:00:13]} 1-0

[Event "FIDE WYCC Open U14 2023"]
[Site "Montesilvano"]
[Date "2023.11.18"]
[Round "6.22"]
[White "Akhmedov, David"]
[Black "George Samir, David"]
[Result "*"]
[WhiteElo "2240"]
[BlackElo "1942"]
[Annotator "RC"]
[PlyCount "63"]
[EventDate "2023.11.13"]
[EventType "swiss"]
[EventCountry "ITA"]
[SourceTitle "playchess.com"]
[Source "ChessBase"]
[SourceQuality "1"]
[TimeControl "40/5400+30:1800+30"]

1. d4 {[%emt 0:00:03]} Nf6 {[%emt 0:00:08]} 2. c4 {[%emt 0:00:04]} e6 {[%emt 0:00:08]} 3. Nf3 {[%emt 0:00:05]} b6 {[%emt 0:06:42]} 4. g3 {[%emt 0:01:35]} Bb7 {[%emt 0:00:56]} 5. Bg2 {[%emt 0:00:04]} Bb4+ {[%emt 0:00:39]} 6. Bd2 {[%emt 0:10:08]} Qe7 {[%emt 0:05:44]} 7. O-O {[%emt 0:02:33]} Bxd2 {[%emt 0:00:17]} 8. Nbxd2 {[%emt 0:00:01]} O-O {[%emt 0:00:08]} 9. Qc2 {[%emt 0:04:45]} d6 {[%emt 0:00:31]} 10. e4 {[%emt 0:02:40]} e5 {[%emt 0:02:05]} 11. d5 {[%emt 0:00:44]} a5 {[%emt 0:00:50]} 12. b3 {[%emt 0:01:05]} Bc8 {[%emt 0:09:37]} 13. Ne1 {[%emt 0:03:49]} h5 {[%emt 0:07:48]} 14. h4 {[%emt 0:13:16]} Ng4 {[%emt 0:06:03]} 15. Nd3 {[%emt 0:08:02]} c6 {[%emt 0:05:32]} 16. dxc6 {[%emt 0:13:42]} Nxc6 {[%emt 0:00:08]} 17. Nc1 {[%emt 0:02:17]} Ba6 {[%emt 0:08:21]} 18. a4 {[%emt 0:05:58]} Nf6 {[%emt 0:03:52]} 19. Ne2 {[%emt 0:04:28]} Nb4 {[%emt 0:03:30]} 20. Qb1 {[%emt 0:01:34]} Nd7 {[%emt 0:00:55]} 21. Rd1 {[%emt 0:00:17]} Nc5 {[%emt 0:00:15]} 22. Nf1 {[%emt 0:01:54]} Bb7 {[%emt 0:01:17]} 23. Ne3 {[%emt 0:00:40]} g6 {[%emt 0:00:17]} 24. Nc3 {[%emt 0:10:39]} Bc6 {[%emt 0:02:15]} 25. Rd2 {[%emt 0:04:22]} Rad8 {[%emt 0:02:43]} 26. Qd1 {[%emt 0:01:59]} Rfe8 {[%emt 0:02:21]} 27. Rb1 {[%emt 0:03:11]} Ne6 {[%emt 0:08:06]} 28. Nc2 {[%emt 0:00:46]} Nxc2 {[%emt 0:03:37]} 29. Qxc2 {[%emt 0:01:12]} Nd4 {[%emt 0:00:52]} 30. Qd3 {[%emt 0:00:47]} f5 {[%emt 0:01:08]} 31. exf5 {[%emt 0:02:11]} Bxg2 {[%emt 0:00:06]} 32. Kxg2 {[%emt 0:00:03]} *

[Event "FIDE WYCC Open U14 2023"]
[Site "Montesilvano"]
[Date "2023.11.18"]
[Round "6.23"]
[White "Poljan, Max"]
[Black "Gkavardinas, Antonios"]
[Result "*"]
[WhiteElo "1953"]
[BlackElo "2230"]
[Annotator "RC"]
[PlyCount "58"]
[EventDate "2023.11.13"]
[EventType "swiss"]
[EventCountry "ITA"]
[SourceTitle "playchess.com"]
[Source "ChessBase"]
[SourceQuality "1"]
[TimeControl "40/5400+30:1800+30"]

1. e4 {[%emt 0:00:01]} c6 {[%emt 0:00:07]} 2. Nc3 {[%emt 0:00:06]} d5 {[%emt 0:00:07]} 3. Nf3 {[%emt 0:00:10]} Bg4 {[%emt 0:00:17]} 4. h3 {[%emt 0:00:07]} Bxf3 {[%emt 0:00:10]} 5. Qxf3 {[%emt 0:00:05]} e6 {[%emt 0:00:21]} 6. d3 {[%emt 0:00:31]} Nd7 {[%emt 0:02:00]} 7. Bd2 {[%emt 0:01:42]} Qb6 {[%emt 0:00:50]} 8. O-O-O {[%emt 0:00:20]} d4 {[%emt 0:00:40]} 9. Nb1 {[%emt 0:00:44]} a5 {[%emt 0:02:32]} 10. g4 {[%emt 0:08:23]} a4 {[%emt 0:06:22]} 11. a3 {[%emt 0:03:43]} Bd6 {[%emt 0:00:43]} 12. h4 {[%emt 0:06:45]} Ne7 {[%emt 0:03:54]} 13. g5 {[%emt 0:09:22]} Qc7 {[%emt 0:06:16]} 14. Qg4 {[%emt 0:09:44]} Ng6 {[%emt 0:09:20]} 15. h5 {[%emt 0:07:28]} Nf4 {[%emt 0:00:58]} 16. Rh4 {[%emt 0:01:50]} Ne5 {[%emt 0:04:03]} 17. Qxf4 {[%emt 0:14:07]} Nxd3+ {[%emt 0:00:13]} 18. Bxd3 {[%emt 0:00:05]} Bxf4 {[%emt 0:00:09]} 19. Bxf4 {[%emt 0:02:25]} Qe7 {[%emt 0:04:50]} 20. e5 {[%emt 0:05:22]} h6 {[%emt 0:13:44]} 21. Rg4 {[%emt 0:03:18]} O-O-O {[%emt 0:00:56]} 22. g6 {[%emt 0:05:26]} Rhf8 {[%emt 0:13:54]} 23. gxf7 {[%emt 0:02:46]} Rxf7 {[%emt 0:00:55]} 24. Nd2 {[%emt 0:01:00]} Kb8 {[%emt 0:07:03]} 25. Kb1 {[%emt 0:00:58]} Qf8 {[%emt 0:03:21]} 26. Bg3 {[%emt 0:00:52]} Rc7 {[%emt 0:02:43]} 27. f4 {[%emt 0:06:17]} b5 {[%emt 0:01:25]} 28. Ne4 {[%emt 0:01:24]} b4 {[%emt 0:06:05]} 29. axb4 {[%emt 0:01:37]} Qxb4 {[%emt 0:01:06]} *

[Event "FIDE WYCC Open U14 2023"]
[Site "Montesilvano"]
[Date "2023.11.18"]
[Round "6.24"]
[White "Terlouw, Wouter"]
[Black "Katsanis, Vasileios Dim"]
[Result "0-1"]
[ECO "E06"]
[WhiteElo "1932"]
[BlackElo "2173"]
[Annotator "ChessBase"]
[PlyCount "78"]
[EventDate "2023.11.13"]
[EventType "swiss"]
[EventCountry "ITA"]
[SourceTitle "playchess.com"]
[Source "ChessBase"]
[SourceQuality "1"]
[TimeControl "40/5400+30:1800+30"]

1. d4 {[%emt 0:00:04]} d5 {[%emt 0:00:04]} 2. c4 {[%emt 0:00:06]} e6 {[%emt 0:00:02]} 3. Nf3 {[%emt 0:00:07]} Nf6 {[%emt 0:00:04]} 4. g3 {[%emt 0:00:06]} Be7 {[%emt 0:00:04]} 5. Bg2 {[%emt 0:00:04]} O-O {[%emt 0:00:05]} 6. Nc3 {[%emt 0:00:02]} dxc4 {[%emt 0:03:07]} 7. Ne5 {[%emt 0:00:05]} Nc6 {[%emt 0:08:32]} 8. Bxc6 {[%emt 0:00:09]} bxc6 {[%emt 0:00:20]} 9. Nxc6 {[%emt 0:00:04]} Qe8 {[%emt 0:00:14]} 10. Nxe7+ {[%emt 0:00:09]} Qxe7 {[%emt 0:00:01]} 11. Qa4 {[%emt 0:00:36]} Bb7 {[%emt 0:12:14]} 12. f3 {[%emt 0:01:03]} e5 {[%emt 0:00:24]} 13. dxe5 {[%emt 0:00:37]} Qxe5 {[%emt 0:00:06]} 14. Bf4 {[%emt 0:00:41]} Qe6 {[%emt 0:06:56]} 15. O-O-O {[%emt 0:02:12]} Rfc8 {[%emt 0:06:43]} 16. e4 {[%emt 0:02:20]} a5 {[%emt 0:05:30]} 17. Rd4 {[%emt 0:05:58]} Qb6 {[%emt 0:06:01]} 18. Rhd1 {[%emt 0:06:06]} Rab8 {[%emt 0:11:56]} 19. Qb5 {[%emt 0:00:56]} Qe6 {[%emt 0:02:25]} 20. Bxc7 {[%emt 0:02:22]} Bc6 {[%emt 0:01:53]} 21. Qxb8 {[%emt 0:00:23]} Rxb8 {[%emt 0:00:09]} 22. Bxb8 {[%emt 0:00:06]} Ne8 {[%emt 0:09:19]} 23. Bf4 {[%emt 0:01:43]} h6 {[%emt 0:01:17]} 24. Nd5 {[%emt 0:01:20]} g5 {[%emt 0:02:55]} 25. Bd2 {[%emt 0:02:54]} Bb5 {[%emt 0:02:06]} 26. Bc3 {[%emt 0:01:12]} Ba4 {[%emt 0:03:28]} 27. b3 {[%emt 0:08:11]} Bc6 {[%emt 0:01:55]} 28. Rxc4 {[%emt 0:04:53]} Kh7 {[%emt 0:00:57]} 29. Rcd4 {[%emt 0:04:10]} Bb5 {[%emt 0:03:39]} 30. Kb2 {[%emt 0:02:09]} Be2 {[%emt 0:00:50]} 31. R1d2 {[%emt 0:00:12]} Bxf3 {[%emt 0:00:34]} 32. e5 {[%emt 0:00:16]} a4 {[%emt 0:01:48]} 33. Nf6+ {[%emt 0:02:12]} Nxf6 {[%emt 0:00:10]} 34. exf6 {[%emt 0:00:04]} Qxf6 {[%emt 0:01:09]} 35. Rf4 {[%emt 0:03:13]} a3+ {[%emt 0:00:59]} 36. Kc2 {[%emt 0:00:25]} Qg6+ {[%emt 0:00:06]} 37. Rd3 {[%emt 0:00:50]} gxf4 {[%emt 0:00:24]} 38. Kd2 {[%emt 0:00:07]} fxg3 {[%emt 0:00:12]} 39. Rd8 {[%emt 0:00:46]} Qg5+ {[%emt 0:00:19]} 0-1

[Event "FIDE WYCC Open U14 2023"]
[Site "Montesilvano"]
[Date "2023.11.18"]
[Round "6.25"]
[White "Escudero Ribo, Eloi"]
[Black "Sodbilegt, Naranbold"]
[Result "0-1"]
[ECO "A45"]
[WhiteElo "1929"]
[BlackElo "2151"]
[Annotator "ChessBase"]
[PlyCount "34"]
[EventDate "2023.11.13"]
[EventType "swiss"]
[EventCountry "ITA"]
[SourceTitle "playchess.com"]
[Source "ChessBase"]
[SourceQuality "1"]
[TimeControl "40/5400+30:1800+30"]

1. d4 {[%emt 0:00:07]} Nf6 {[%emt 0:00:06]} 2. Bg5 {[%emt 0:00:08]} Ne4 {[%emt 0:00:25]} 3. h4 {[%emt 0:00:09]} d5 {[%emt 0:04:59]} 4. Nd2 {[%emt 0:00:11]} h6 {[%emt 0:01:21]} 5. Bf4 {[%emt 0:00:22]} e6 {[%emt 0:01:57]} 6. f3 {[%emt 0:04:19]} Bd6 {[%emt 0:04:58]} 7. Bxd6 {[%emt 0:09:31]} Qxd6 {[%emt 0:00:11]} 8. Nxe4 {[%emt 0:00:27]} dxe4 {[%emt 0:00:05]} 9. fxe4 {[%emt 0:00:20]} Qg3+ {[%emt 0:05:52]} 10. Kd2 {[%emt 0:00:06]} e5 {[%emt 0:00:59]} 11. Qe1 {[%emt 0:05:21]} Qg6 {[%emt 0:15:32]} 12. dxe5 {[%emt 0:07:17]} Qxe4 {[%emt 0:01:08]} 13. Rd1 {[%emt 0:08:03]} Bf5 {[%emt 0:00:16]} 14. Qg3 {[%emt 0:06:00]} Nc6 {[%emt 0:04:35]} 15. Qc3 {[%emt 0:14:53]} O-O-O+ {[%emt 0:08:10]} 16. Kc1 {[%emt 0:00:48]} Qf4+ {[%emt 0:00:21]} 17. e3 {[%emt 0:02:12]} Rxd1+ {[%emt 0:00:35]} 0-1

[Event "FIDE WYCC Open U14 2023"]
[Site "Montesilvano"]
[Date "2023.11.18"]
[Round "6.26"]
[White "Tabatadze, Erekle"]
[Black "Malinowsky, Levi"]
[Result "0-1"]
[ECO "D85"]
[WhiteElo "1925"]
[BlackElo "2135"]
[Annotator "NA"]
[PlyCount "64"]
[EventDate "2023.11.13"]
[EventType "swiss"]
[EventCountry "ITA"]
[SourceTitle "playchess.com"]
[Source "ChessBase"]
[SourceQuality "1"]
[TimeControl "40/5400+30:1800+30"]

1. d4 {[%emt 0:00:05]} Nf6 {[%emt 0:00:05]} 2. c4 {[%emt 0:00:07]} g6 {[%emt 0:00:09]} 3. Nc3 {[%emt 0:00:16]} d5 {[%emt 0:00:05]} 4. cxd5 {[%emt 0:01:30]} Nxd5 {[%emt 0:00:10]} 5. e4 {[%emt 0:00:11]} Nxc3 {[%emt 0:00:06]} 6. bxc3 {[%emt 0:00:05]} Bg7 {[%emt 0:00:09]} 7. Bb5+ {[%emt 0:00:18]} Bd7 {[%emt 0:03:45]} 8. Rb1 {[%emt 0:03:31]} O-O {[%emt 0:04:09]} 9. Ne2 {[%emt 0:02:41]} a6 {[%emt 0:03:10]} 10. Bxd7 {[%emt 0:04:00]} Nxd7 {[%emt 0:00:10]} 11. O-O {[%emt 0:04:11]} Rb8 {[%emt 0:09:09]} 12. f4 {[%emt 0:09:34]} c5 {[%emt 0:03:29]} 13. Be3 {[%emt 0:03:30]} cxd4 {[%emt 0:03:04]} 14. cxd4 {[%emt 0:01:36]} Qa5 {[%emt 0:03:56]} 15. d5 {[%emt 0:06:22]} Qxa2 {[%emt 0:03:46]} 16. e5 {[%emt 0:04:31]} Rfd8 {[%emt 0:12:11]} 17. Nc3 {[%emt 0:16:26]} Qc4 {[%emt 0:05:51]} 18. Qd4 {[%emt 0:02:51]} Qxd4 {[%emt 0:01:53]} 19. Bxd4 {[%emt 0:00:08]} b5 {[%emt 0:02:18]} 20. Rb4 {[%emt 0:12:45]} Nb6 {[%emt 0:03:23]} 21. Bxb6 {[%emt 0:01:02]} Rxb6 {[%emt 0:00:08]} 22. Rfb1 {[%emt 0:02:14]} f6 {[%emt 0:03:18]} 23. Re4 {[%emt 0:02:32]} fxe5 {[%emt 0:00:53]} 24. fxe5 {[%emt 0:00:08]} b4 {[%emt 0:03:36]} 25. d6 {[%emt 0:04:14]} exd6 {[%emt 0:01:05]} 26. Nd5 {[%emt 0:00:04]} Rb5 {[%emt 0:01:41]} 27. Ne7+ {[%emt 0:00:06]} Kh8 {[%emt 0:04:59]} 28. Nc6 {[%emt 0:03:03]} Re8 {[%emt 0:01:02]} 29. e6 {[%emt 0:03:45]} a5 {[%emt 0:05:01]} 30. e7 {[%emt 0:00:55]} Rc5 {[%emt 0:07:20]} 31. Nd8 {[%emt 0:02:20]} Be5 {[%emt 0:00:54]} 32. Ne6 {[%emt 0:01:31]} Rcc8 {[%emt 0:00:15]} 0-1

[Event "FIDE WYCC Open U14 2023"]
[Site "Montesilvano"]
[Date "2023.11.18"]
[Round "6.27"]
[White "Radzimski, Antoni"]
[Black "Tao, Sihan"]
[Result "1-0"]
[ECO "E46"]
[WhiteElo "1904"]
[BlackElo "2122"]
[Annotator "NA"]
[PlyCount "127"]
[EventDate "2023.11.13"]
[EventType "swiss"]
[EventCountry "ITA"]
[SourceTitle "playchess.com"]
[Source "ChessBase"]
[SourceQuality "1"]
[TimeControl "40/5400+30:1800+30"]

1. d4 {[%emt 0:00:20]} Nf6 {[%emt 0:00:27]} 2. c4 {[%emt 0:00:06]} e6 {[%emt 0:00:09]} 3. Nc3 {[%emt 0:00:05]} Bb4 {[%emt 0:00:06]} 4. e3 {[%emt 0:00:04]} O-O {[%emt 0:01:51]} 5. Bd2 {[%emt 0:00:13]} d5 {[%emt 0:00:41]} 6. Nf3 {[%emt 0:00:30]} b6 {[%emt 0:00:50]} 7. cxd5 {[%emt 0:01:15]} exd5 {[%emt 0:00:08]} 8. Rc1 {[%emt 0:00:08]} Be7 {[%emt 0:00:38]} 9. Bd3 {[%emt 0:00:56]} c5 {[%emt 0:00:29]} 10. O-O {[%emt 0:12:39]} Bb7 {[%emt 0:00:37]} 11. dxc5 {[%emt 0:11:45]} bxc5 {[%emt 0:01:11]} 12. Qc2 {[%emt 0:00:18]} Nc6 {[%emt 0:07:03]} 13. a3 {[%emt 0:02:28]} c4 {[%emt 0:16:02]} 14. Be2 {[%emt 0:06:24]} d4 {[%emt 0:17:43]} 15. exd4 {[%emt 0:06:24]} Nxd4 {[%emt 0:00:06]} 16. Nxd4 {[%emt 0:00:07]} Qxd4 {[%emt 0:00:02]} 17. Be3 {[%emt 0:04:42]} Qe5 {[%emt 0:10:44]} 18. Rfd1 {[%emt 0:06:06]} Bc5 {[%emt 0:05:43]} 19. Bxc5 {[%emt 0:04:16]} Qxc5 {[%emt 0:00:24]} 20. Qd2 {[%emt 0:01:36]} Rab8 {[%emt 0:09:25]} 21. Qf4 {[%emt 0:02:40]} Qc6 {[%emt 0:06:56]} 22. Bf3 {[%emt 0:00:55]} Qe6 {[%emt 0:02:13]} 23. Bxb7 {[%emt 0:03:32]} Rxb7 {[%emt 0:00:01]} 24. Na4 {[%emt 0:00:13]} Nd5 {[%emt 0:15:04]} 25. Qxc4 {[%emt 0:02:11]} Nb6 {[%emt 0:00:12]} 26. Qxe6 {[%emt 0:04:00]} fxe6 {[%emt 0:00:02]} 27. Nxb6 {[%emt 0:01:21]} Rxb6 {[%emt 0:00:01]} 28. b4 {[%emt 0:01:52]} a5 {[%emt 0:00:14]} 29. Rc4 {[%emt 0:00:54]} axb4 {[%emt 0:00:14]} 30. axb4 {[%emt 0:00:01]} Ra6 {[%emt 0:03:21]} 31. f3 {[%emt 0:07:23]} Ra2 {[%emt 0:00:12]} 32. Rd7 {[%emt 0:00:32]} Ra1+ {[%emt 0:02:48]} 33. Kf2 {[%emt 0:00:16]} Ra2+ {[%emt 0:00:05]} 34. Kg3 {[%emt 0:00:11]} Kh8 {[%emt 0:00:39]} 35. Rcc7 {[%emt 0:00:30]} Rg8 {[%emt 0:00:07]} 36. Re7 {[%emt 0:00:09]} Rb2 {[%emt 0:00:23]} 37. Rb7 {[%emt 0:00:07]} Re2 {[%emt 0:01:13]} 38. Rb6 {[%emt 0:00:54]} Re5 {[%emt 0:00:22]} 39. Rbxe6 {[%emt 0:00:31]} Rg5+ {[%emt 0:00:46]} 40. Kf2 {[%emt 0:00:00]} Rb5 {[%emt 0:00:00]} 41. Re4 {[%emt 0:01:08]} Rbb8 {[%emt 0:00:50]} 42. Rc4 {[%emt 0:01:31]} h6 {[%emt 0:01:28]} 43. f4 {[%emt 0:01:49]} Rgd8 {[%emt 0:01:13]} 44. Ke3 {[%emt 0:01:52]} Rd1 {[%emt 0:00:14]} 45. Kf3 {[%emt 0:02:30]} Rf1+ {[%emt 0:03:13]} 46. Kg3 {[%emt 0:02:22]} Rb6 {[%emt 0:02:23]} 47. Kh3 {[%emt 0:04:35]} Rf2 {[%emt 0:03:53]} 48. g3 {[%emt 0:01:34]} h5 {[%emt 0:05:56]} 49. Rc5 {[%emt 0:02:58]} Rh6 {[%emt 0:00:24]} 50. Rc8+ {[%emt 0:00:53]} Kh7 {[%emt 0:00:07]} 51. Rcc7 {[%emt 0:00:01]} Rg6 {[%emt 0:00:28]} 52. Rc5 {[%emt 0:00:06]} h4 {[%emt 0:03:00]} 53. Rh5+ {[%emt 0:00:09]} Kg8 {[%emt 0:00:03]} 54. Rxh4 {[%emt 0:00:10]} Rb6 {[%emt 0:00:11]} 55. Re4 {[%emt 0:00:09]} Rb5 {[%emt 0:00:47]} 56. Kg4 {[%emt 0:03:56]} Rb2 {[%emt 0:01:52]} 57. Rh5 {[%emt 0:00:25]} R2xb4 {[%emt 0:00:20]} 58. Rxb4 {[%emt 0:01:06]} Rxb4 {[%emt 0:00:02]} 59. Ra5 {[%emt 0:00:21]} Kf7 {[%emt 0:00:15]} 60. Kf5 {[%emt 0:01:44]} Rb3 {[%emt 0:00:14]} 61. Ra7+ {[%emt 0:01:33]} Kf8 {[%emt 0:01:31]} 62. Kg5 {[%emt 0:00:41]} Kg8 {[%emt 0:00:54]} 63. f5 {[%emt 0:01:59]} Rf3 {[%emt 0:00:32]} 64. Kg6 {[%emt 0:00:57]} 1-0

[Event "FIDE WYCC Open U14 2023"]
[Site "Montesilvano"]
[Date "2023.11.18"]
[Round "6.28"]
[White "Lin, Leo"]
[Black "Tamer Waguih, Farid"]
[Result "1-0"]
[ECO "B17"]
[WhiteElo "2097"]
[BlackElo "1893"]
[Annotator "NA"]
[PlyCount "43"]
[EventDate "2023.11.13"]
[EventType "swiss"]
[EventCountry "ITA"]
[SourceTitle "playchess.com"]
[Source "ChessBase"]
[SourceQuality "1"]
[TimeControl "40/5400+30:1800+30"]

1. e4 {[%emt 0:00:09]} c6 {[%emt 0:00:06]} 2. d4 {[%emt 0:00:38]} d5 {[%emt 0:00:06]} 3. Nd2 {[%emt 0:01:20]} dxe4 {[%emt 0:00:13]} 4. Nxe4 {[%emt 0:00:07]} Nd7 {[%emt 0:00:07]} 5. Nf3 {[%emt 0:00:08]} Ngf6 {[%emt 0:00:15]} 6. Ng3 {[%emt 0:00:50]} e6 {[%emt 0:04:15]} 7. Bd3 {[%emt 0:00:09]} Bd6 {[%emt 0:00:23]} 8. O-O {[%emt 0:00:08]} O-O {[%emt 0:00:22]} 9. Re1 {[%emt 0:00:08]} Qc7 {[%emt 0:01:18]} 10. Ne4 {[%emt 0:00:47]} Nxe4 {[%emt 0:05:14]} 11. Rxe4 {[%emt 0:00:03]} e5 {[%emt 0:05:14]} 12. dxe5 {[%emt 0:08:46]} Nxe5 {[%emt 0:01:24]} 13. Nxe5 {[%emt 0:01:44]} Bxe5 {[%emt 0:00:08]} 14. Qh5 {[%emt 0:01:19]} Bf6 {[%emt 0:25:22]} 15. Rh4 {[%emt 0:11:14]} h6 {[%emt 0:17:03]} 16. Bxh6 {[%emt 0:01:57]} g6 {[%emt 0:02:45]} 17. Qc5 {[%emt 0:00:58]} Rd8 {[%emt 0:06:26]} 18. Bg5 {[%emt 0:03:03]} Bxb2 {[%emt 0:11:45]} 19. Re1 {[%emt 0:11:18]} Be6 {[%emt 0:04:40]} 20. c3 {[%emt 0:02:58]} Bg4 {[%emt 0:06:29]} 21. Bf6 {[%emt 0:00:35]} Bh5 {[%emt 0:00:40]} 22. Rxh5 {[%emt 0:00:10]} 1-0